{"text_format":"1","workbook":"xlsx","n_sheets":10,"sheets":["Резервуары","Горючие жидкости","Пеносливы","ПГУ","Рекомендуемые трубы","Состав","Расчет","Текст расчета","Спецификация","Трубопровод"],"not_rendered":{"charts":0,"images":0,"macros":1,"external_links":0,"defined_names":0,"comments":0,"pivot_tables":0},"unopened":[],"bounds":{"document_bytes":16777216,"sheet_cells":100000,"rows_first":2000,"rows_last":500,"rows_between":2000,"halvings":0,"cell_chars":16384,"cell_head_chars":4096},"cells_cut":0,"cells_raw":0,"read":"whole","date_system":"1900"}

{"sheet":"Резервуары","index":0,"n_rows":12,"n_cols":2,"rows_kept":12,"cut":false,"hidden":false,"merged":[]}
["Внутренний диаметр, м","Номинальный объем, м³"]
[10.43,"РВ-1000"]
[12.33,"РВСПК-1000"]
[15.18,"РВ-2000"]
[18.98,"РВ-3000"]
[20.92,"РВ-5000"]
[22.8,"РВ-5000"]
[28.5,"РВ-10000"]
[34.200000000000003,"РВ-10000"]
[39.9,"РВ-20000"]
[45.67,"РВ-20000"]
[47.4,"РВ-20000"]

{"sheet":"Горючие жидкости","index":1,"n_rows":10,"n_cols":2,"rows_kept":10,"cut":false,"hidden":false,"merged":[]}
["Температура вспышки, ⁰С","Жидкость"]
[-40,"Бензин"]
[0,"Газ. конденсат"]
[6,"Метанол"]
[10,"Нефть"]
[28,"Авиакеросин ТС-1"]
[40,"Печное топливо"]
[40,"Солярка"]
[48,"Керосин"]
[70,"Мазут"]

{"sheet":"Пеносливы","index":2,"n_rows":9,"n_cols":2,"rows_kept":9,"cut":false,"hidden":false,"merged":[]}
["Расход, л/с","Тип пенослива"]
[5,"ПС (У)"]
[10,"ПС (У)"]
[10,"ПС-РВС"]
[15,"ПС (У)"]
[15,"ПС-РВС"]
[20,"ПС (У)"]
[25,"ПС (У)"]
[30,"ПС (У)"]

{"sheet":"ПГУ","index":3,"n_rows":39,"n_cols":6,"rows_kept":39,"cut":false,"hidden":false,"merged":[]}
["Производительность","Миксер 1","Миксер 2","Миксер 3","Труба воды","Размер корпуса"]
[1.5,{"$f":"\"02\"","v":"02"},{"$f":"\"02\"","v":"02"},{"$f":"\"00\"","v":"00"},"Ду 50 ","малый "]
[1.5,{"$f":"\"04\"","v":"04"},{"$f":"\"00\"","v":"00"},{"$f":"\"00\"","v":"00"},"Ду 50 ","малый "]
[2.25,{"$f":"\"02\"","v":"02"},{"$f":"\"02\"","v":"02"},{"$f":"\"02\"","v":"02"},"Ду 50 ","малый "]
[2.25,{"$f":"\"04\"","v":"04"},{"$f":"\"02\"","v":"02"},{"$f":"\"00\"","v":"00"},"Ду 50 ","малый "]
[3,{"$f":"\"04\"","v":"04"},{"$f":"\"02\"","v":"02"},{"$f":"\"02\"","v":"02"},"Ду 50 ","малый "]
[3,{"$f":"\"04\"","v":"04"},{"$f":"\"04\"","v":"04"},{"$f":"\"00\"","v":"00"},"Ду 50 ","малый "]
[3,{"$f":"\"08\"","v":"08"},{"$f":"\"00\"","v":"00"},{"$f":"\"00\"","v":"00"},"Ду 50 ","малый "]
[3.75,{"$f":"\"04\"","v":"04"},{"$f":"\"04\"","v":"04"},{"$f":"\"02\"","v":"02"},"Ду 50 ","малый "]
[3.75,{"$f":"\"08\"","v":"08"},{"$f":"\"02\"","v":"02"},{"$f":"\"00\"","v":"00"},"Ду 50 ","малый "]
[4.5,{"$f":"\"04\"","v":"04"},{"$f":"\"04\"","v":"04"},{"$f":"\"04\"","v":"04"},"Ду 50 ","малый "]
[4.5,{"$f":"\"08\"","v":"08"},{"$f":"\"02\"","v":"02"},{"$f":"\"02\"","v":"02"},"Ду 50 ","малый "]
[4.5,{"$f":"\"08\"","v":"08"},{"$f":"\"04\"","v":"04"},{"$f":"\"00\"","v":"00"},"Ду 50 ","малый "]
[5.25,{"$f":"\"08\"","v":"08"},{"$f":"\"04\"","v":"04"},{"$f":"\"02\"","v":"02"},"Ду 50 ","малый "]
[6,{"$f":"\"08\"","v":"08"},{"$f":"\"04\"","v":"04"},{"$f":"\"04\"","v":"04"},"Ду 50 ","малый "]
[6,{"$f":"\"08\"","v":"08"},{"$f":"\"08\"","v":"08"},{"$f":"\"00\"","v":"00"},"Ду 50 ","малый "]
[6,16,{"$f":"\"00\"","v":"00"},{"$f":"\"00\"","v":"00"},"Ду 50 ","малый "]
[6.75,{"$f":"\"08\"","v":"08"},{"$f":"\"08\"","v":"08"},{"$f":"\"02\"","v":"02"},"Ду 50 ","малый "]
[6.75,16,{"$f":"\"02\"","v":"02"},{"$f":"\"00\"","v":"00"},"Ду 50 ","малый "]
[7.5,{"$f":"\"08\"","v":"08"},{"$f":"\"08\"","v":"08"},{"$f":"\"04\"","v":"04"},"Ду 50 ","большой "]
[7.5,16,{"$f":"\"02\"","v":"02"},{"$f":"\"02\"","v":"02"},"Ду 50 ","малый "]
[7.5,16,{"$f":"\"04\"","v":"04"},{"$f":"\"00\"","v":"00"},"Ду 50 ","малый "]
[8.25,16,{"$f":"\"04\"","v":"04"},{"$f":"\"02\"","v":"02"},"Ду 50 ","большой "]
[9,16,{"$f":"\"04\"","v":"04"},{"$f":"\"04\"","v":"04"},"Ду 50 ","большой "]
[9,16,{"$f":"\"08\"","v":"08"},{"$f":"\"00\"","v":"00"},"Ду 50 ","малый "]
[9.75,16,{"$f":"\"08\"","v":"08"},{"$f":"\"02\"","v":"02"},"Ду 50 ","большой "]
[10.5,16,{"$f":"\"08\"","v":"08"},{"$f":"\"04\"","v":"04"},"Ду 50 ","большой "]
[12,16,16,{"$f":"\"00\"","v":"00"},"Ду 50 ","большой "]
[12,32,{"$f":"\"00\"","v":"00"},{"$f":"\"00\"","v":"00"},"Ду 50 ","малый "]
[12.75,32,{"$f":"\"02\"","v":"02"},{"$f":"\"00\"","v":"00"},"Ду 50 ","малый "]
[13.5,32,{"$f":"\"02\"","v":"02"},{"$f":"\"02\"","v":"02"},"Ду 50 ","малый "]
[13.5,32,{"$f":"\"04\"","v":"04"},{"$f":"\"00\"","v":"00"},"Ду 50 ","малый "]
[14.25,32,{"$f":"\"04\"","v":"04"},{"$f":"\"02\"","v":"02"},"Ду 100 ","большой "]
[15,32,{"$f":"\"04\"","v":"04"},{"$f":"\"04\"","v":"04"},"Ду 100 ","большой "]
[15,32,{"$f":"\"08\"","v":"08"},{"$f":"\"00\"","v":"00"},"Ду 100 ","малый "]
[15.75,32,{"$f":"\"08\"","v":"08"},{"$f":"\"02\"","v":"02"},"Ду 100 ","большой "]
[16.5,32,{"$f":"\"08\"","v":"08"},{"$f":"\"04\"","v":"04"},"Ду 100 ","большой "]
[18,32,16,{"$f":"\"00\"","v":"00"},"Ду 100 ","большой "]
[24,32,32,{"$f":"\"00\"","v":"00"},"Ду 100 ","большой "]

{"sheet":"Рекомендуемые трубы","index":4,"n_rows":11,"n_cols":5,"rows_kept":11,"cut":false,"hidden":false,"merged":[]}
["Условный диаметр","Внутренний диаметр","Наружный диаметр","Толщина стенки","Предельная пропускная способность"]
["Ду40",{"$f":"Таблица2[[#This Row],[Наружный диаметр]]-2*Таблица2[[#This Row],[Толщина стенки]]","v":41},48,3.5,1.5]
["Ду50",{"$f":"Таблица2[[#This Row],[Наружный диаметр]]-2*Таблица2[[#This Row],[Толщина стенки]]","v":50},57,3.5,3]
["Ду65",{"$f":"Таблица2[[#This Row],[Наружный диаметр]]-2*Таблица2[[#This Row],[Толщина стенки]]","v":68},76,4,6]
["Ду80",{"$f":"Таблица2[[#This Row],[Наружный диаметр]]-2*Таблица2[[#This Row],[Толщина стенки]]","v":83},89,3,6]
["Ду100",{"$f":"Таблица2[[#This Row],[Наружный диаметр]]-2*Таблица2[[#This Row],[Толщина стенки]]","v":107},114,3.5,12]
["Ду125",126,133,3.5,12]
["Ду150",{"$f":"Таблица2[[#This Row],[Наружный диаметр]]-2*Таблица2[[#This Row],[Толщина стенки]]","v":152},159,3.5,24]
["Ду200",{"$f":"Таблица2[[#This Row],[Наружный диаметр]]-2*Таблица2[[#This Row],[Толщина стенки]]","v":212},219,3.5,48]
["Ду250",{"$f":"Таблица2[[#This Row],[Наружный диаметр]]-2*Таблица2[[#This Row],[Толщина стенки]]","v":264},273,4.5,96]
["Ду300",{"$f":"Таблица2[[#This Row],[Наружный диаметр]]-2*Таблица2[[#This Row],[Толщина стенки]]","v":315},325,5,192]

{"sheet":"Состав","index":5,"n_rows":3,"n_cols":3,"rows_kept":3,"cut":false,"hidden":false,"merged":[]}
["Блок-модуль",40,1]
["БПО",0,1]
["РВЗО-250",null,0]

{"sheet":"Расчет","index":6,"n_rows":10,"n_cols":2,"rows_kept":10,"cut":false,"hidden":false,"merged":[[9,0,9,1]]}
["Параметр","Значение"]
["Расход огнетушащего вещества \n(условный расход пенораствора)","24 л/с (1440 л/мин)"]
["Расход пенообразователя","0,72 л/с (43,2 л/мин)"]
["Объем пенообразователя на 30 мин.","1296 л (1,3 м3)"]
["Расход воздуха атм. давления","388 л/с (23307 л/мин)"]
["Объём воздуха на 30 мин. (к-т запаса 1.1)","769120 л (769,12 м3)"]
["Количество баллонов","69 шт."]
["Расход воды","23,55 л/с (1413 л/мин)"]
["Объём воды на 30 мин","42389 л (42,389 м3)"]
["Примечание: Объём ПО, воздуха и воды рассчитан с учётом объёма пены для заполнения магистрального трубопровода (2000 л)."]

{"sheet":"Текст расчета","index":7,"n_rows":60,"n_cols":2,"rows_kept":60,"cut":false,"hidden":false,"merged":[]}
["1. Расчёт расхода условного раствора пенообразователя"]
["Система пенного пожаротушения должна обеспечивать расход условного пенораствора, Qпр = 24 л/с = 1440 л/мин.","*"]
["Требуемый объём условного пенораствора, Vпр, л, составит:"]
["Vпр = Qпр * T  + Vпр тр,"]
["где T - время работы системы пожаротушения,  Vпр тр - объём пенораствора, необходимого для заполнения трубопровода от ПГУ к оросителям."]
["T = Tтуш * K + Tисп,"]
["где Ттуш - время тушения пожара, K - число пенных атак, Тисп - время испытаний."]
["T = 15 * 2 + 2 = 32 мин. ","*"]
["Определим объем пенораствора, необходимого для заполнения трубопровода от ПГУ до оросителей. Согласно Руководству по проектированию установок пожаротушения с генерированием пены компрессионным способом (таблица раздела 6.5) объем пенораствора в трубе в четыре раза меньше объема самой трубы. В данном расчете приняты магистральные трубопроводы:"]
[" - участок №1 диаметром 24 мм и длиной 200 м;\r\n - участок №2 диаметром 24 мм и длиной 200 м;\r\n","*"]
["Объем трубы определяется по формуле:"]
[" Vпр тр = π * (Dтр/2)² * Lтр,"]
["где Dтр - диаметр трубопровода (м.), Lтр - длина трубопровода (м.)."]
["  Vтр1 = 3,14 * (0,024 / 2)² * 200 = 0,15 м³ = 150 л;\r\n  Vтр2 = 3,14 * (0,024 / 2)² * 200 = 0,15 м³ = 150 л;\r\n","*"]
["Vпр = 1440 * 30 + (150 + 150) / 4 = 45556 л","*"]
[]
["2. Расчёт требуемого объёма пенообразователя"]
["Расчёт требуемого объёма пенообразователя, с учётом заполнения трубопроводов пеной, Vпо, л, производится по формуле:"]
["Vпо = Vпр * Спо"]
["где Спо — концентрация пенообразователя."]
["Vпо = 45556 * 0,03 = 1366,68 л","*"]
["Исходя из величины Vпо выбираем бак для пенообразователя с требуемым объемом (с округлением в большую сторону): бак БПО-1400 с полезной емкостью 1400 л.","*"]
[]
["Объем пенораствора, необходимый для испытаний рассчитывается по следующей формуле:"]
["Vпр исп = Qтест * tисп"]
["где Qтест — расход на тушение, tисп - время проведения испытаний, 2 мин."]
["Vпр исп = 1440 * 2 = 2880 л","*"]
["Объем пенообразователя рассчитывается аналогично объему на тушение:"]
["Vпо исп = 2880 * 0,03 = 86,4 л","*"]
[]
["3. Расчёт требуемого объёма сжатого воздуха"]
["Номинальная кратность генерируемой ПГУ пены равна 10."]
["Таким образом, объём пены Vп составляет:"]
["Vп=Vпр*10"]
["Vп = 45556 * 10 = 455560 л/мин","*"]
["Расчётный объём воздуха атмосферного давления для создания пены с учетом 10% запаса составляет, л.:"]
["Vвоз п = Vп * Cвоз * 1,1;"]
["где Cвоз - концентрация воздуха (Cвоз = 90%)."]
["Vвоз п = 455560 * 0,9 * 1,1 = 451004 л","*"]
["Расчетный объем воздуха, предназначенный для вытеснения пенообразователя из бака с давлением 7 бар,  с учетом 10% запаса составляет, л:"]
["Vвоз по = 7 * 1,1 * Vпо;"]
["Vвоз по = 7 * 1,1 * 1366,68 = 10523 л","*"]
["Общий объем воздуха составляет, л:"]
["Vвоз = Vвоз п + Vвоз по"]
["Vвоз = 451004 + 10523 = 461528 л","*"]
["Хранение запаса воздуха осуществляется в баллонах емкостью 100 л."]
["Датчик давления, контролирующий давление воздуха в баллонах, настроен на давление 13,5 МПа, примем это значение за максимальное давление воздуха в баллоне. Минимальное значение давления в баллоне, определяемое характеристиками установленного в системе редуктора, составляет 2,4 МПа. Исходя из этих данных рассчитано, что в каждом 100-литровом баллоне хранится 11310 литров воздуха в пересчете на атмосферное давление."]
["Таким образом, необходимое количество баллонов в установке, n, шт, определяется как:"]
["n = Vвоз / Vбал,"]
["где Vбал — вместимость одного баллона (Vбал = 11310 л.)."]
["n = 461528 / 11310 = 40,80707","*"]
["Полученное количество баллонов округляем в большую сторону до ближайшего целого значения - 41 шт. ","*"]
[]
["4. Расчёт требуемого объёма воды"]
["Условный пенораствор состоит из воды и пенообразователя. Таким образом, концентрация воды в условном растворе составляет:"]
["Свод = 1 - Спо"]
["Свод = 1 - 0,03 = 0,97","*"]
["Требуемый объём воды составляет:"]
["Vвод = Vп * Свод"]
["Vвод = 45556 * 0,97 = 44189 л","*"]

{"sheet":"Спецификация","index":8,"n_rows":0,"n_cols":0,"rows_kept":0,"cut":false,"hidden":false,"merged":[]}

{"sheet":"Трубопровод","index":9,"n_rows":0,"n_cols":0,"rows_kept":0,"cut":false,"hidden":false,"merged":[]}